fUST/lending_fUST_20240624
["ID","MTS","AMOUNT","RATE_DAILY","PERIOD"]
[330216186,1719174639389,-500.0,0.00016438,2]
[330216187,1719174639401,-500.0,0.00016438,2]
[330216188,1719174639413,-500.0,0.00016438,2]
[330216189,1719174639426,-500.0,0.00016438,2]
[330216190,1719174639436,-500.0,0.00016438,2]
[330216191,1719174639448,-932.12,0.00016438,2]
[330216192,1719174639458,-500.0,0.00016438,2]
[330216193,1719174639468,-500.0,0.00016438,2]
[330216194,1719174639478,-563.01,0.00016438,2]
[330216195,1719174639489,-1324.56,0.00016438,2]
[330216196,1719174639499,-500.0,0.00016438,2]
[330216197,1719174639509,-500.0,0.00016438,2]
[330216198,1719174639519,-500.0,0.00016438,2]
[330216199,1719174639529,-1516.13,0.00016438,2]
[330216200,1719174639540,-500.0,0.00016438,2]
[330216201,1719174639550,-500.0,0.00016438,2]
[330216202,1719174639560,-500.0,0.00016438,2]
[330216203,1719174639570,-500.0,0.00016438,2]
[330216204,1719174639580,-500.0,0.00016438,2]
[330216205,1719174639590,-158.95326838,0.00016438,2]
[330216206,1719174639600,-500.0,0.00016438,2]
[330216207,1719174639609,-279.92,0.00016438,2]
[330216208,1719174639619,-500.0,0.00016438,2]
[330216209,1719174639629,-500.0,0.00016438,2]
[330216210,1719174639639,-1103.0,0.00016438,2]
[330216211,1719174639649,-500.0,0.00016438,2]
[330216212,1719174639659,-500.0,0.00016438,2]
[330216213,1719174639670,-1475.76,0.00016438,2]
[330216214,1719174639681,-500.0,0.00016438,2]
[330216215,1719174639692,-500.0,0.00016438,2]
[330216216,1719174639703,-500.0,0.00016438,2]
[330216217,1719174639714,-500.0,0.00016438,2]
[330216218,1719174639724,-472.60205159,0.00016438,2]
[330216219,1719174639735,-448.91955808,0.00016438,2]
[330216220,1719174639745,-4066.31,0.00016438,2]
[330216221,1719174639756,-500.0,0.00016438,2]
[330216222,1719174639766,-1762.91,0.00016438,2]
[330216223,1719174639776,-1380.03,0.00016438,2]
[330216224,1719174639785,-500.0,0.00016438,2]
[330216225,1719174639795,-500.0,0.00016438,2]
[330216226,1719174639805,-1025.32,0.00016438,2]
[330216227,1719174639815,-500.0,0.00016438,2]
[330216228,1719174639825,-667.47,0.00016438,2]
[330216229,1719174639836,-500.0,0.00016438,2]
[330216230,1719174639846,-500.0,0.00016438,2]
[330216231,1719174639856,-500.0,0.00016438,2]
[330216232,1719174639866,-500.0,0.00016438,2]
[330216233,1719174639876,-500.0,0.00016438,2]
[330216234,1719174639886,-500.0,0.00016438,2]
[330216235,1719174639896,-449.73124058,0.00016438,2]
[330216236,1719174639906,-500.0,0.00016438,2]
[330216237,1719174639916,-607.17,0.00016438,2]
[330216238,1719174639927,-860.5,0.00016438,2]
[330216239,1719174639937,-500.0,0.00016438,2]
[330216240,1719174639946,-500.0,0.00016438,2]
[330216241,1719174639956,-500.0,0.00016438,2]
[330216242,1719174639966,-1793.34,0.00016438,2]
[330216243,1719174639976,-2104.1,0.00016438,2]
[330216244,1719174639986,-500.0,0.00016438,2]
[330216245,1719174639996,-519.99534314,0.00016438,2]
[330216246,1719174640006,-500.0,0.00016438,2]
[330216247,1719174640016,-500.0,0.00016438,2]
[330216248,1719174640026,-500.0,0.00016438,2]
[330216249,1719174640036,-437.34671598,0.00016438,2]
[330216250,1719174640045,-552.06982032,0.00016438,2]
[330216251,1719174640056,-503.23688875,0.00016438,2]
[330216252,1719174640065,-714.36,0.00016438,2]
[330216253,1719174640075,-500.0,0.00016438,2]
[330216254,1719174640085,-426.9345968,0.00016438,2]
[330216255,1719174640095,-513.51302212,0.00016438,2]
[330216256,1719174640105,-500.0,0.00016438,2]
[330216257,1719174640115,-500.0,0.00016438,2]
[330216258,1719174640125,-500.0,0.00016438,2]
[330216259,1719174640134,-500.0,0.00016438,2]
[330216260,1719174640144,-500.0,0.00016438,2]
[330216261,1719174640153,-500.0,0.00016438,2]
[330216262,1719174640164,-598.35,0.00016438,2]
[330216263,1719174640175,-637.49,0.00016438,2]
[330216264,1719174640185,-500.0,0.00016438,2]
[330216265,1719174640195,-500.0,0.00016438,2]
[330216266,1719174640205,-500.0,0.00016438,2]
[330216267,1719174640215,-605.62,0.00016438,2]
[330216268,1719174640225,-1188.46,0.00016438,2]
[330216269,1719174640235,-500.0,0.00016438,2]
[330216270,1719174640245,-500.0,0.00016438,2]
[330216271,1719174640255,-500.0,0.00016438,2]
[330216272,1719174640265,-500.0,0.00016438,2]
[330216273,1719174640275,-500.0,0.00016438,2]
[330216274,1719174640285,-973.52,0.00016438,2]
[330216275,1719174640294,-500.0,0.00016438,2]
[330216276,1719174640304,-500.0,0.00016438,2]
[330216277,1719174640314,-500.0,0.00016438,2]
[330216278,1719174640324,-1441.99,0.00016438,2]
[330216279,1719174640333,-500.0,0.00016438,2]
[330216280,1719174640343,-500.0,0.00016438,2]
[330216281,1719174640352,-500.0,0.00016438,2]
[330216282,1719174640362,-500.0,0.00016438,2]
[330216283,1719174640372,-500.0,0.00016438,2]
[330216284,1719174640382,-742.42,0.00016438,2]
[330216285,1719174640391,-546.28,0.00016438,2]
[330216286,1719174640403,-500.0,0.00016438,2]
[330216287,1719174640414,-500.0,0.00016438,2]
[330216288,1719174640425,-845.58,0.00016438,2]
[330216289,1719174640435,-500.0,0.00016438,2]
[330216290,1719174640447,-500.0,0.00016438,2]
[330216291,1719174640456,-525.22,0.00016438,2]
[330216292,1719174640466,-722.91,0.00016438,2]
[330216294,1719174640476,-21126.25,0.00016438,2]
[330216296,1719174640490,-513.60575091,0.00016438,2]
[330216298,1719174640500,-500.0,0.00016438,2]
[330216299,1719174640510,-500.0,0.00016438,2]
[330216300,1719174640520,-5605.98,0.00016438,2]
[330216301,1719174640530,-500.0,0.00016438,2]
[330216302,1719174640540,-500.0,0.00016438,2]
[330216303,1719174640551,-1191.24,0.00016438,2]
[330216304,1719174640562,-674.34,0.00016438,2]
[330216305,1719174640572,-1348.97,0.00016438,2]
[330216306,1719174640581,-500.0,0.00016438,2]
[330216307,1719174640591,-500.0,0.00016438,2]
[330216308,1719174640601,-500.0,0.00016438,2]
[330216309,1719174640612,-500.0,0.00016438,2]
[330216310,1719174640622,-490.01253011,0.00016438,2]
[330216311,1719174640632,-500.0,0.00016438,2]
[330216312,1719174640776,-500.0,0.00016438,2]
[330216313,1719174640786,-1531.69,0.00016438,2]
[330216314,1719174640796,-555.54,0.00016438,2]
[330216315,1719174640806,-542.18,0.00016438,2]
[330216316,1719174640816,-643.83,0.00016438,2]
[330216317,1719174640826,-500.0,0.00016438,2]
[330216318,1719174640836,-500.0,0.00016438,2]
[330216319,1719174640845,-500.0,0.00016438,2]
[330216320,1719174640855,-3174.3,0.00016438,2]
[330216321,1719174640865,-500.0,0.00016438,2]
[330216322,1719174640874,-550.15,0.00016438,2]
[330216323,1719174640883,-1100.27,0.00016438,2]
[330216324,1719174640893,-500.0,0.00016438,2]
[330216325,1719174640902,-500.0,0.00016438,2]
[330216326,1719174640911,-473.87871896,0.00016438,2]
[330216327,1719174640922,-508.7203825,0.00016438,2]
[330216328,1719174640931,-500.0,0.00016438,2]
[330216329,1719174640940,-500.0,0.00016438,2]
[330216330,1719174640950,-642.11,0.00016438,2]
[330216331,1719174640959,-1321.57,0.00016438,2]
[330216332,1719174640969,-2315.91,0.00016438,2]
[330216333,1719174640978,-500.0,0.00016438,2]
[330216334,1719174640988,-500.0,0.00016438,2]
[330216335,1719174640998,-1251.46,0.00016438,2]
[330216336,1719174641007,-6323.22,0.00016438,2]
[330216337,1719174641016,-500.0,0.00016438,2]
[330216338,1719174641026,-509.21904877,0.00016438,2]
[330216339,1719174641035,-970.94,0.00016438,2]
[330216340,1719174641045,-890.06,0.00016438,2]
[330216341,1719174641054,-500.0,0.00016438,2]
[330216342,1719174641064,-500.0,0.00016438,2]
[330216343,1719174641074,-742.69,0.00016438,2]
[330216344,1719174641084,-500.0,0.00016438,2]
[330216345,1719174641094,-612.61,0.00016438,2]
[330216346,1719174641104,-199.56487531,0.00016438,2]
[330216347,1719174641114,-500.0,0.00016438,2]
[330216348,1719174641123,-6784.43,0.00016438,2]
[330216349,1719174641133,-957.79,0.00016438,2]
[330216350,1719174641143,-500.0,0.00016438,2]
[330216351,1719174641152,-500.0,0.00016438,2]
[330216352,1719174641162,-500.0,0.00016438,2]
[330216353,1719174641171,-1199.62,0.00016438,2]
[330216354,1719174641181,-500.0,0.00016438,2]
[330216355,1719174641191,-500.0,0.00016438,2]
[330216356,1719174641201,-500.0,0.00016438,2]
[330216357,1719174641210,-500.0,0.00016438,2]
[330216358,1719174641220,-265.50762221,0.00016438,2]
[330216359,1719174641229,-500.0,0.00016438,2]
[330216360,1719174641243,-500.0,0.00016438,2]
[330216361,1719174641254,-500.0,0.00016438,2]
[330216362,1719174641263,-1117.51,0.00016438,2]
[330216363,1719174641273,-500.0,0.00016438,2]
[330216364,1719174641282,-1238.49,0.00016438,2]
[330216365,1719174641291,-500.0,0.00016438,2]
[330216366,1719174641301,-500.0,0.00016438,2]
[330216367,1719174641311,-500.0,0.00016438,2]
[330216368,1719174641320,-2870.31,0.00016438,2]
[330216369,1719174641330,-500.0,0.00016438,2]
[330216370,1719174641339,-616.4,0.00016438,2]
[330216371,1719174641349,-4040.72,0.00016438,2]
[330216372,1719174641358,-500.0,0.00016438,2]
[330216373,1719174641368,-500.0,0.00016438,2]
[330216374,1719174641377,-500.0,0.00016438,2]
[330216375,1719174641387,-840.74,0.00016438,2]
[330216376,1719174641397,-520.38567189,0.00016438,2]
[330216377,1719174641411,-1873.26,0.00016438,2]
[330216378,1719174641422,-4334.49,0.00016438,2]
[330216379,1719174641431,-575.16,0.00016438,2]
[330216380,1719174641440,-503.48,0.00016438,2]
[330216381,1719174641450,-500.0,0.00016438,2]
[330216382,1719174641460,-500.0,0.00016438,2]
[330216383,1719174641469,-500.0,0.00016438,2]
[330216384,1719174641479,-18414.85,0.00016438,2]
[330216385,1719174641491,-1341.15,0.00016438,2]
[330216386,1719174641500,-536.38,0.00016438,2]
[330216387,1719174641510,-1898.74,0.00016438,2]
[330216388,1719174641519,-350.25959646,0.00016438,2]
[330216389,1719174641529,-500.0,0.00016438,2]
[330216390,1719174641539,-542.19,0.00016438,2]
[330216391,1719174641548,-1079.26,0.00016438,2]
[330216392,1719174641558,-1537.45,0.00016438,2]
[330216393,1719174641568,-500.0,0.00016438,2]
[330216394,1719174641577,-500.0,0.00016438,2]
[330216395,1719174641586,-500.0,0.00016438,2]
[330216396,1719174641596,-248.52639496,0.00016438,2]
[330216397,1719174641605,-6551.28,0.00016438,2]
[330216398,1719174641615,-500.0,0.00016438,2]
[330216399,1719174641624,-500.0,0.00016438,2]
[330216400,1719174641633,-2561.56,0.00016438,2]
[330216401,1719174641643,-6517.34,0.00016438,2]
[330216402,1719174641652,-500.0,0.00016438,2]
[330216403,1719174641662,-500.0,0.00016438,2]
[330216404,1719174641672,-1537.66,0.00016438,2]
[330216405,1719174641683,-520.7039951,0.00016438,2]
[330216406,1719174641692,-500.0,0.00016438,2]
[330216407,1719174641706,-500.0,0.00016438,2]
[330216408,1719174641716,-774.05,0.00016438,2]
[330216409,1719174641725,-250.0,0.00016438,2]
[330216410,1719174641735,-500.0,0.00016438,2]
[330216411,1719174641744,-1432.41,0.00016438,2]
[330216412,1719174641754,-500.0,0.00016438,2]
[330216413,1719174641764,-7412.42,0.00016438,2]
[330216415,1719174641773,-500.0,0.00016438,2]
[330216417,1719174641783,-3610.86,0.00016438,2]
[330216419,1719174641793,-500.0,0.00016438,2]
[330216421,1719174641803,-2246.33,0.00016438,2]
[330216422,1719174641813,-500.0,0.00016438,2]
[330216423,1719174641824,-500.0,0.00016438,2]
[330216424,1719174641833,-27039.49748833,0.00016438,2]
[330216427,1719174641862,-4411.55242182,0.00016438,2]
[330216428,1719174641874,-1003.03008985,0.00016438,2]
[330216429,1719174641883,-1.91688468,0.00016438,2]
[330216430,1719174641898,-1374.79311532,0.00016438,2]
[330216431,1719174641907,-756.33,0.00016438,2]
[330216432,1719174641916,-500.0,0.00016438,2]
[330216433,1719174641929,-509.42238587,0.00016438,2]
[330216434,1719174641938,-500.0,0.00016438,2]
[330216435,1719174641947,-500.0,0.00016438,2]
[330216436,1719174641956,-842.54666328,0.00016452,2]
[330216437,1719174641966,-2647.15982238,0.00016461,2]
[330216438,1719174641974,-779.53489623,0.00016461,2]
[330216439,1719174641983,-2416.50301873,0.00016461,2]
[330216440,1719174641992,-2647.15982238,0.00016461,2]
[330216441,1719174642001,-154.85288975,0.00016466,2]
[330216442,1719174642011,-409.86430162,0.00016472,2]
[330216443,1719174642020,-175.97073239,0.00016486,2]
[330216444,1719174642029,-175.97073239,0.00016486,2]
[330216445,1719174642038,-2040.5580749,0.00016486,2]
[330216446,1719174642047,-303.82947754,0.00016489,2]
[330216447,1719174642055,-423.68516166,0.00016489,2]
[330216448,1719174642516,-523.78969033,0.00016489,2]
[330216449,1719174642526,-156.42887627,0.00016489,2]
[330216450,1719174642536,-990.49460368,0.00016489,2]
[330216451,1719174642546,-1487.05343949,0.00016489,2]
[330216452,1719174642556,-2145.11469784,0.000165,2]
[330216453,1719174642566,-292.95882568,0.000165,2]
[330216454,1719174642576,-2145.11469784,0.000165,2]
[330216455,1719174642587,-626.91764322,0.000165,2]
[330216456,1719174642596,-154.85288975,0.000165,2]
[330216457,1719174642606,-154.85288975,0.00016522,2]
[330216458,1719174642616,-531.01956017,0.00016522,2]
[330216459,1719174642625,-227.88919192,0.00016522,2]
[330216460,1719174642635,-257.6749072,0.00016522,2]
[330216461,1719174642644,-201.15633945,0.00016525,2]
[330216462,1719174642653,-723.68394442,0.00016525,2]
[330216463,1719174642664,-154.85288975,0.00016525,2]
[330216464,1719174642675,-154.85288975,0.00016525,2]
[330216465,1719174642684,-610.41550692,0.00016525,2]
[330216466,1719174642693,-888.08083523,0.00016525,2]
[330216467,1719174642703,-1102.77481401,0.00016525,2]
[330216468,1719174642713,-490.22115977,0.0001657,2]
[330216469,1719174642723,-1102.77481401,0.0001657,2]
[330216470,1719174642733,-239.52424691,0.0001657,2]
[330216471,1719174642742,-344.5641034,0.0001657,2]
[330216472,1719174642752,-1374.81809454,0.0001657,2]
[330216473,1719174642762,-208.75334757,0.00016589,2]
[330216474,1719174642771,-159.33316742,0.00016589,2]
[330216475,1719174642780,-154.85288975,0.00016589,2]
[330216476,1719174642790,-154.85288975,0.00016589,2]
[330216477,1719174642800,-154.85288975,0.00016607,2]
[330216478,1719174642810,-276.06944735,0.00016607,2]
[330216479,1719174642819,-154.85288975,0.00016607,2]
[330216480,1719174642829,-361.3,0.00016653,2]
[330216481,1719174642839,-154.85288975,0.00016688,2]
[330216482,1719174642848,-154.85288975,0.00016711,2]
[330216483,1719174642857,-402.58396579,0.00016711,2]
[330216484,1719174642867,-500.0,0.00016712,2]
[330216485,1719174642876,-500.0,0.00016712,2]
[330216486,1719174642886,-500.0,0.00016712,2]
[330216487,1719174642895,-500.0,0.00016712,2]
[330216488,1719174642904,-500.0,0.00016712,2]
[330216489,1719174642913,-500.0,0.00016712,2]
[330216490,1719174642923,-500.0,0.00016712,2]
[330216491,1719174642933,-500.0,0.00016712,2]
[330216492,1719174642942,-649.31,0.00016712,2]
[330216493,1719174642952,-180.71251317,0.00016712,2]
[330216494,1719174642965,-319.28748683,0.00016712,2]
[330216495,1719174642974,-500.0,0.00016712,2]
[330216496,1719174642984,-500.0,0.00016712,2]
[330216497,1719174642994,-538.3268208,0.00016712,2]
[330216498,1719174643004,-500.0,0.00016712,2]
[330216499,1719174643014,-500.0,0.00016712,2]
[330216500,1719174643023,-500.0,0.00016712,2]
[330216501,1719174643032,-577.06,0.00016712,2]
[330216503,1719174643042,-500.0,0.00016712,2]
[330216504,1719174643052,-500.0,0.00016712,2]
[330216508,1719174643062,-357.02079771,0.00016712,2]
[330216510,1719174643072,-500.0,0.00016712,2]
[330216513,1719174643083,-500.0,0.00016712,2]
[330216515,1719174643093,-500.0,0.00016712,2]
[330216516,1719174643103,-1503.14,0.00016712,2]
[330216517,1719174643112,-500.0,0.00016712,2]
[330216518,1719174643122,-607.12,0.00016712,2]
[330216519,1719174643132,-904.38,0.00016712,2]
[330216520,1719174643141,-500.0,0.00016712,2]
[330216522,1719174643151,-611.69651806,0.00016712,2]
[330216523,1719174643160,-523.96573731,0.00016712,2]
[330216524,1719174643170,-500.0,0.00016712,2]
[330216525,1719174643180,-500.0,0.00016712,2]
[330216526,1719174643190,-500.0,0.00016712,2]
[330216527,1719174643199,-558.69,0.00016712,2]
[330216528,1719174643209,-151.0,0.00016712,2]
[330216529,1719174643219,-500.0,0.00016712,2]
[330216530,1719174643229,-980.55,0.00016712,2]
[330216531,1719174643240,-500.0,0.00016712,2]
[330216532,1719174643249,-500.0,0.00016712,2]
[330216533,1719174643259,-500.0,0.00016712,2]
[330216534,1719174643268,-563.01,0.00016712,2]
[330216535,1719174643278,-500.0,0.00016712,2]
[330216536,1719174643288,-1324.56,0.00016712,2]
[330216538,1719174643298,-500.0,0.00016712,2]
[330216539,1719174643308,-500.0,0.00016712,2]
[330216540,1719174643317,-1516.13,0.00016712,2]
[330216541,1719174643327,-500.0,0.00016712,2]
[330216542,1719174643337,-500.0,0.00016712,2]
[330216543,1719174643346,-500.0,0.00016712,2]
[330216544,1719174643356,-500.0,0.00016712,2]
[330216545,1719174643365,-151.0,0.00016712,2]
[330216546,1719174643374,-151.0,0.00016712,2]
[330216547,1719174643383,-500.0,0.00016712,2]
[330216549,1719174643393,-500.0,0.00016712,2]
[330216550,1719174643405,-1103.0,0.00016712,2]
[330216552,1719174643415,-500.0,0.00016712,2]
[330216553,1719174643426,-500.0,0.00016712,2]
[330216554,1719174643435,-1475.76,0.00016712,2]
[330216555,1719174643445,-500.0,0.00016712,2]
[330216556,1719174643454,-4066.31,0.00016712,2]
[330216557,1719174643464,-500.0,0.00016712,2]
[330216558,1719174643473,-1762.91,0.00016712,2]
[330216559,1719174643484,-1380.03,0.00016712,2]
[330216560,1719174643493,-500.0,0.00016712,2]
[330216561,1719174643503,-1025.32,0.00016712,2]
[330216562,1719174643512,-500.0,0.00016712,2]
[330216567,1719174643623,-667.47,0.00016712,2]
[330216568,1719174643654,-500.0,0.00016712,2]
[330216569,1719174643664,-500.0,0.00016712,2]
[330216570,1719174643673,-500.0,0.00016712,2]
[330216571,1719174643682,-500.0,0.00016712,2]
[330216572,1719174643691,-500.0,0.00016712,2]
[330216573,1719174643700,-500.0,0.00016712,2]
[330216574,1719174643709,-500.0,0.00016712,2]
[330216575,1719174643720,-607.17,0.00016712,2]
[330216576,1719174643729,-860.5,0.00016712,2]
[330216577,1719174643738,-500.0,0.00016712,2]
[330216578,1719174643747,-500.0,0.00016712,2]
[330216579,1719174643757,-500.0,0.00016712,2]
[330216580,1719174643766,-1793.34,0.00016712,2]
[330216581,1719174643775,-2104.1,0.00016712,2]
[330216582,1719174643784,-151.0,0.00016712,2]
[330216583,1719174643793,-151.0,0.00016712,2]
[330216584,1719174643802,-500.0,0.00016712,2]
[330216585,1719174643812,-633.08551059,0.00016712,2]
[330216586,1719174643821,-714.36,0.00016712,2]
[330216587,1719174643830,-362.64247783,0.00016712,2]
[330216588,1719174643839,-500.0,0.00016712,2]
[330216589,1719174643849,-295.38675613,0.00016712,2]
[330216590,1719174643858,-500.0,0.00016712,2]
[330216591,1719174643867,-598.35,0.00016712,2]
[330216592,1719174643876,-637.49,0.00016712,2]
[330216593,1719174643886,-500.0,0.00016712,2]
[330216594,1719174643896,-151.0,0.00016712,2]
[330216595,1719174643905,-151.0,0.00016712,2]
[330216596,1719174643915,-500.0,0.00016712,2]
[330216597,1719174643925,-605.62,0.00016712,2]
[330216598,1719174643935,-1188.46,0.00016712,2]
[330216599,1719174643944,-500.0,0.00016712,2]
[330216600,1719174643954,-433.93284465,0.00016712,2]
[330216601,1719174643964,-500.0,0.00016712,2]
[330216602,1719174643974,-500.0,0.00016712,2]
[330216603,1719174643983,-973.52,0.00016712,2]
[330216604,1719174643993,-151.0,0.00016712,2]
[330216605,1719174644002,-151.0,0.00016712,2]
[330216606,1719174644012,-525.88735785,0.00016712,2]
[330216607,1719174644022,-77.61911671,0.00016712,2]
[330216618,1719174646853,-500.0,0.00016438,2]
[330216619,1719174646864,-909.96,0.00016438,2]
[330216621,1719174646875,-525.4495035,0.00016438,2]
[330216626,1719174646960,-18810.5704965,0.00016438,2]
[330216627,1719174646969,-723.68394442,0.00016522,2]
[330216628,1719174646979,-201.15633945,0.00016522,2]
[330216629,1719174646988,-239.52424691,0.00016525,2]
[330216630,1719174646998,-490.22115977,0.00016525,2]
[330216631,1719174647008,-610.41550692,0.00016525,2]
[330216633,1719174647018,-208.75334757,0.0001657,2]
[330216635,1719174647028,-73.38088329,0.00016712,2]
[330216636,1719174647037,-151.0,0.00016712,2]
[330216638,1719174647047,-500.0,0.00016712,2]
[330216640,1719174647056,-500.0,0.00016712,2]
[330216642,1719174647065,-1441.99,0.00016712,2]
[330216645,1719174647074,-525.85415469,0.00016712,2]
[330216647,1719174647084,-500.0,0.00016712,2]
[330216648,1719174647094,-500.0,0.00016712,2]
[330216649,1719174647103,-537.77197571,0.00016712,2]
[330216650,1719174647112,-500.0,0.00016712,2]
[330216651,1719174647121,-742.42,0.00016712,2]
[330216652,1719174647131,-546.28,0.00016712,2]
[330216653,1719174647140,-500.0,0.00016712,2]
[330216655,1719174647149,-500.0,0.00016712,2]
[330216656,1719174647159,-845.58,0.00016712,2]
[330216657,1719174647169,-500.0,0.00016712,2]
[330216658,1719174647179,-273.09517383,0.00016712,2]
[330216659,1719174647188,-525.22,0.00016712,2]
[330216660,1719174647198,-722.91,0.00016712,2]
[330216661,1719174647207,-500.0,0.00016712,2]
[330216662,1719174647217,-500.0,0.00016712,2]
[330216663,1719174647226,-5605.98,0.00016712,2]
[330216664,1719174647236,-500.0,0.00016712,2]
[330216665,1719174647245,-500.0,0.00016712,2]
[330216666,1719174647255,-1191.24,0.00016712,2]
[330216667,1719174647264,-674.34,0.00016712,2]
[330216668,1719174647274,-1348.97,0.00016712,2]
[330216669,1719174647283,-150.66789957,0.00016712,2]
[330216670,1719174647293,-500.0,0.00016712,2]
[330216671,1719174647302,-500.0,0.00016712,2]
[330216672,1719174647312,-500.0,0.00016712,2]
[330216673,1719174647321,-500.0,0.00016712,2]
[330216674,1719174647331,-500.0,0.00016712,2]
[330216675,1719174647340,-1531.69,0.00016712,2]
[330216676,1719174647350,-555.54,0.00016712,2]
[330216677,1719174647360,-542.18,0.00016712,2]
[330216678,1719174647371,-643.83,0.00016712,2]
[330216679,1719174647380,-500.0,0.00016712,2]
[330216680,1719174647390,-500.0,0.00016712,2]
[330216681,1719174647399,-3174.3,0.00016712,2]
[330216682,1719174647414,-500.0,0.00016712,2]
[330216683,1719174647423,-550.15,0.00016712,2]
[330216684,1719174647433,-1100.27,0.00016712,2]
[330216685,1719174647442,-500.0,0.00016712,2]
[330216686,1719174647452,-500.0,0.00016712,2]
[330216687,1719174647462,-500.0,0.00016712,2]
[330216688,1719174647471,-642.11,0.00016712,2]
[330216689,1719174647483,-151.0,0.00016712,2]
[330216690,1719174647493,-151.0,0.00016712,2]
[330216691,1719174647502,-1321.57,0.00016712,2]
[330216692,1719174647512,-2315.91,0.00016712,2]
[330216693,1719174647521,-500.0,0.00016712,2]
[330216694,1719174647530,-500.0,0.00016712,2]
[330216695,1719174647540,-1251.46,0.00016712,2]
[330216696,1719174647549,-151.0,0.00016712,2]
[330216697,1719174647559,-151.0,0.00016712,2]
[330216698,1719174647569,-6323.22,0.00016712,2]
[330216699,1719174647579,-970.94,0.00016712,2]
[330216700,1719174647588,-890.06,0.00016712,2]
[330216701,1719174647598,-500.0,0.00016712,2]
[330216702,1719174647608,-500.0,0.00016712,2]
[330216703,1719174647617,-742.69,0.00016712,2]
[330216704,1719174647627,-500.0,0.00016712,2]
[330216705,1719174647636,-612.61,0.00016712,2]
[330216706,1719174647646,-151.0,0.00016712,2]
[330216707,1719174647655,-500.0,0.00016712,2]
[330216708,1719174647664,-151.0,0.00016712,2]
[330216709,1719174647674,-6784.43,0.00016712,2]
[330216710,1719174647685,-500.0,0.00016712,2]
[330216711,1719174647695,-957.79,0.00016712,2]
[330216712,1719174647708,-500.0,0.00016712,2]
[330216713,1719174647718,-500.0,0.00016712,2]
[330216714,1719174647727,-1199.62,0.00016712,2]
[330216715,1719174647737,-500.0,0.00016712,2]
[330216716,1719174647746,-500.0,0.00016712,2]
[330216717,1719174647755,-500.0,0.00016712,2]
[330216718,1719174647764,-500.0,0.00016712,2]
[330216719,1719174647773,-500.0,0.00016712,2]
[330216720,1719174647783,-500.0,0.00016712,2]
[330216721,1719174647792,-500.0,0.00016712,2]
[330216722,1719174647802,-1117.51,0.00016712,2]
[330216723,1719174647811,-500.0,0.00016712,2]
[330216724,1719174647820,-1238.49,0.00016712,2]
[330216725,1719174647830,-500.0,0.00016712,2]
[330216726,1719174647839,-500.0,0.00016712,2]
[330216727,1719174647847,-2870.31,0.00016712,2]
[330216728,1719174647858,-500.0,0.00016712,2]
[330216729,1719174647868,-616.4,0.00016712,2]
[330216730,1719174647878,-4040.72,0.00016712,2]
[330216731,1719174647888,-500.0,0.00016712,2]
[330216732,1719174647898,-500.0,0.00016712,2]
[330216733,1719174647907,-840.74,0.00016712,2]
[330216734,1719174647917,-1873.26,0.00016712,2]